bitfinex/quotes_BTCUSD_20220204
["timestamp","ask_amount","ask_price","bid_price","bid_amount"]
[1643942613479,0.04654923,37408.0,37407.0,0.0538]
[1643942613979,0.04577438,37408.0,37407.0,0.0538]
[1643942615583,0.00177484,37409.0,37407.0,0.05802562]
[1643942616428,0.001,37409.0,37408.0,0.08919007]
[1643942616628,0.001,37409.0,37408.0,0.14299007]
[1643942616829,0.001,37409.0,37408.0,0.46327588]
[1643942617227,0.001,37409.0,37408.0,0.46885584]
[1643942618034,0.001,37409.0,37408.0,0.14299007]
[1643942618431,1.49677438,37409.0,37408.0,0.0538]
[1643942618831,1.59677438,37409.0,37403.0,0.0538]
[1643942619031,1.551,37409.0,37403.0,0.0538]
[1643942619231,1.546,37409.0,37403.0,0.0538]
[1643942619432,1.07972706,37404.0,37403.0,0.0538]
[1643942619631,1.12972706,37404.0,37403.0,0.0538]
[1643942620036,0.62972706,37404.0,37403.0,0.0538]
[1643942620685,0.62972706,37404.0,37402.0,0.00422562]
[1643942620686,0.26977708,37404.0,37402.0,0.00422562]
[1643942620881,0.05,37404.0,37402.0,0.07106462]
[1643942621082,0.066847,37405.0,37402.0,0.07106462]
[1643942621283,0.04577438,37404.0,37403.0,0.0538]
[1643942621482,0.04577438,37404.0,37403.0,0.05802562]
[1643942622084,0.04577438,37404.0,37403.0,0.0538]
[1643942622385,0.42742198,37404.0,37398.0,0.87852617]
[1643942622584,0.79577438,37399.0,37398.0,0.87852617]
[1643942622784,1.14618138,37399.0,37398.0,0.87852617]
[1643942623082,0.04577438,37399.0,37398.0,0.87852617]
[1643942623286,0.63404463,37399.0,37398.0,0.87852617]
[1643942624634,0.34270153,37399.0,37398.0,0.87852617]
[1643942624834,0.29692715,37399.0,37398.0,0.88275179]
[1643942625234,0.34270153,37399.0,37398.0,0.87852617]
[1643942625436,0.99497873,37399.0,37398.0,0.87852617]
[1643942625639,1.09497873,37399.0,37398.0,0.87852617]
[1643942625841,1.44536497,37399.0,37398.0,0.87852617]
[1643942626236,1.14310853,37399.0,37398.0,0.87852617]
[1643942626435,1.35224816,37399.0,37398.0,0.87852617]
[1643942626636,1.08322003,37399.0,37398.0,0.87852617]
[1643942627139,0.8740804,37399.0,37398.0,0.87852617]
[1643942627338,0.06763592,37400.0,37398.0,0.88275179]
[1643942627539,0.00077492,37400.0,37399.0,0.85]
[1643942627791,0.00077492,37400.0,37399.0,0.9038]
[1643942628191,0.20577455,37408.0,37399.0,1.0038]
[1643942628394,0.20577455,37408.0,37406.0,0.08726401]
[1643942628690,0.20577455,37408.0,37399.0,0.38967322]
[1643942628691,0.11261638,37407.0,37399.0,0.38967322]
[1643942628889,0.20577455,37408.0,37399.0,0.05802562]
[1643942629289,0.20577455,37408.0,37402.0,0.00422562]
[1643942629290,0.04577438,37404.0,37402.0,0.00422562]
[1643942629489,0.04577438,37404.0,37400.0,0.00422562]
[1643942629691,0.04577438,37404.0,37401.0,0.0818444]
[1643942629893,0.04577438,37404.0,37402.0,0.31572334]
[1643942630090,0.04577438,37404.0,37402.0,0.31994896]
[1643942631092,0.30650224,37404.0,37402.0,0.31994896]
[1643942631528,0.30650224,37404.0,37402.0,0.00422562]
[1643942632930,0.30650224,37404.0,37401.0,0.0818444]
[1643942633732,0.35650224,37404.0,37401.0,0.0818444]
[1643942633933,0.066848,37403.0,37400.0,0.06685]
[1643942634133,0.25645416,37402.0,37400.0,0.0538]
[1643942634334,0.09577438,37401.0,37400.0,0.0538]
[1643942634533,0.09577438,37401.0,37398.0,0.87852617]
[1643942634732,0.25645416,37402.0,37398.0,0.87852617]
[1643942634933,0.04577438,37399.0,37398.0,0.87852617]
[1643942635785,0.001,37409.0,37399.0,0.85]
[1643942635989,0.0011,37416.0,37409.0,0.45]
[1643942636190,0.0011,37416.0,37415.0,0.00422562]
[1643942636385,0.0011,37416.0,37415.0,0.05802562]
[1643942636784,0.0011,37416.0,37415.0,0.38967322]
[1643942636984,0.001,37417.0,37415.0,1.06157322]
[1643942637185,0.001,37421.0,37418.0,1.35]
[1643942637487,0.0111,37429.0,37422.0,1.15]
[1643942637488,0.0011,37426.0,37422.0,1.15]
[1643942637687,0.0111,37429.0,37426.0,0.55]
[1643942637886,0.0111,37429.0,37428.0,0.67612562]
[1643942638189,0.0111,37429.0,37428.0,1.27992562]
[1643942638385,0.0111,37429.0,37428.0,1.74631521]
[1643942638789,0.05687438,37429.0,37428.0,0.72992562]
[1643942639240,0.05687438,37429.0,37428.0,0.7257]
[1643942639641,0.0111,37429.0,37428.0,0.7257]
[1643942639841,0.0111,37429.0,37428.0,0.72992562]
[1643942640140,0.1118,37432.0,37428.0,0.72992562]
[1643942640540,0.04577438,37431.0,37428.0,0.72992562]
[1643942640945,1.49577438,37429.0,37428.0,0.7257]
[1643942641349,1.495,37429.0,37428.0,0.7257]
[1643942641543,0.045,37429.0,37428.0,0.7257]
[1643942642346,1.13382397,37429.0,37428.0,0.7257]
[1643942642782,0.28382397,37429.0,37428.0,0.7257]
[1643942642986,0.32959835,37429.0,37428.0,0.7257]
[1643942643182,0.09077438,37429.0,37426.0,0.066797]
[1643942643382,0.09077438,37429.0,37427.0,0.0538]
[1643942643583,0.04577438,37428.0,37427.0,0.0538]
[1643942643782,0.06227223,37432.0,37427.0,0.0538]
[1643942643988,0.04577438,37428.0,37427.0,0.0538]
[1643942644984,0.05,37429.0,37427.0,0.0538]
[1643942645183,0.36299619,37430.0,37427.0,0.0538]
[1643942645482,0.24627663,37429.0,37427.0,0.0538]
[1643942645686,0.54577438,37428.0,37427.0,0.0538]
[1643942646084,0.09577438,37428.0,37427.0,0.0538]
[1643942646285,0.4,37428.0,37427.0,0.0538]
[1643942646557,0.05,37429.0,37427.0,0.0538]
[1643942646755,0.31722181,37430.0,37427.0,0.0538]
[1643942646956,0.89577438,37428.0,37427.0,0.0538]
[1643942647154,2.50811713,37428.0,37420.0,0.0538]
[1643942647354,0.04577438,37421.0,37417.0,0.066815]
[1643942647554,0.04577438,37424.0,37417.0,0.066815]
[1643942647754,1.26193575,37428.0,37418.0,0.32664926]
[1643942647956,0.04577438,37420.0,37418.0,0.32664926]
[1643942648153,0.35277086,37424.0,37420.0,0.07376172]
[1643942648354,0.05,37424.0,37420.0,0.19436872]
[1643942648555,0.04577438,37421.0,37420.0,0.19436872]
[1643942649156,0.00077615,37432.0,37420.0,0.19436872]
[1643942649355,0.00077615,37432.0,37421.0,0.00422562]
[1643942649356,0.04577438,37427.0,37421.0,0.00422562]
[1643942649556,0.25980283,37429.0,37420.0,0.19436872]
[1643942649756,0.25980283,37429.0,37423.0,0.133593]
[1643942649956,0.25980283,37429.0,37420.0,0.12756172]
[1643942649957,0.04577438,37424.0,37420.0,0.12756172]
[1643942650186,0.04577438,37422.0,37421.0,0.00422562]
[1643942651185,0.04577438,37422.0,37420.0,0.0538]
[1643942651583,0.04077438,37422.0,37420.0,0.120612]
[1643942651787,0.37918952,37424.0,37420.0,0.120612]
[1643942651984,0.04077438,37421.0,37420.0,0.120612]
[1643942655336,0.31238252,37424.0,37420.0,0.45295045]
[1643942655736,0.04077438,37421.0,37420.0,0.44372483]
[1643942655935,0.0022,37433.0,37420.0,0.45295045]
[1643942656140,0.00077615,37432.0,37426.0,0.00922562]
[1643942656335,0.04077438,37427.0,37426.0,0.00922562]
[1643942656537,0.04077438,37430.0,37426.0,0.00922562]
[1643942656736,0.04077438,37430.0,37429.0,0.09749037]
[1643942657786,0.04077438,37430.0,37428.0,0.06302562]
[1643942657986,0.04077438,37430.0,37429.0,0.14280262]
[1643942658288,0.04077438,37430.0,37429.0,0.133577]
[1643942658888,0.04077438,37430.0,37428.0,0.0538]
[1643942659189,0.25941362,37427.0,37424.0,0.00922562]
[1643942659591,0.30941362,37427.0,37424.0,0.00922562]
[1643942659989,0.350188,37427.0,37423.0,0.254156]
[1643942660189,0.350188,37427.0,37426.0,0.75922562]
[1643942660190,0.04077438,37427.0,37426.0,0.75922562]
[1643942660390,0.04077438,37427.0,37426.0,0.0538]
[1643942661191,0.29368594,37427.0,37426.0,0.0538]
[1643942661631,0.34368594,37427.0,37426.0,0.0538]
[1643942662429,0.34368594,37427.0,37426.0,0.120593]
[1643942662634,0.29368594,37427.0,37426.0,0.120593]
[1643942662830,0.34368594,37427.0,37426.0,0.120593]
[1643942663835,0.29368594,37427.0,37426.0,0.120593]
[1643942664635,0.34368594,37427.0,37426.0,0.120593]
[1643942667689,0.29368594,37427.0,37426.0,0.120593]
[1643942667889,0.25291156,37427.0,37426.0,0.120593]
[1643942668933,0.25291156,37427.0,37426.0,0.22078204]
[1643942669335,0.21455798,37427.0,37426.0,0.22078204]
[1643942669534,0.30533236,37427.0,37426.0,0.120593]
[1643942669734,0.30533236,37427.0,37426.0,0.0538]
[1643942669935,0.35533236,37427.0,37426.0,0.0538]
[1643942670142,0.133609,37425.0,37421.0,0.31251134]
[1643942670535,0.05,37424.0,37421.0,0.31251134]
[1643942670736,0.05,37424.0,37423.0,0.00922562]
[1643942670935,0.05,37424.0,37422.0,0.066807]
[1643942671137,0.04077438,37423.0,37422.0,0.066807]
[1643942671938,0.05,37424.0,37422.0,0.066807]
[1643942672138,0.04077438,37423.0,37422.0,0.066807]
[1643942675794,0.05,37424.0,37422.0,0.066807]
[1643942675994,0.05,37424.0,37423.0,0.00922562]
[1643942676295,0.09077438,37424.0,37422.0,0.066807]
[1643942677334,0.09077438,37424.0,37422.0,0.07603262]
[1643942678636,0.09077438,37424.0,37422.0,0.066807]
[1643942679034,0.09077438,37424.0,37422.0,0.07603262]
[1643942679435,0.09077438,37424.0,37422.0,0.066807]
[1643942679840,1.5,37423.0,37419.0,0.34775233]
[1643942680038,0.14077438,37424.0,37419.0,0.34775233]
[1643942680039,2.29566028,37420.0,37419.0,0.21414133]
[1643942680286,2.29566028,37420.0,37418.0,0.02159452]
[1643942680287,1.71352535,37419.0,37418.0,0.02159452]
[1643942680589,1.80511642,37419.0,37418.0,0.02058974]
[1643942680788,2.11287228,37419.0,37418.0,0.02058974]
[1643942680984,2.46327928,37419.0,37418.0,0.02058974]
[1643942681386,2.09787228,37419.0,37418.0,0.02058974]
[1643942681589,1.38530791,37414.0,37413.0,0.21414133]
[1643942681787,1.38530791,37414.0,37413.0,0.23234409]
[1643942681788,1.52608229,37414.0,37413.0,0.23234409]
[1643942681985,1.87648929,37414.0,37413.0,0.23234409]
[1643942682185,1.87648929,37414.0,37411.0,0.00310355]
[1643942682186,1.55,37413.0,37411.0,0.00310355]
[1643942682387,1.7962524,37412.0,37406.0,0.33930119]
[1643942682586,0.29222516,37407.0,37406.0,0.00387963]
[1643942682787,0.38299954,37407.0,37406.0,0.00387963]
[1643942682987,0.43299954,37407.0,37406.0,0.00387963]
[1643942683192,0.04077438,37407.0,37406.0,0.00387963]
[1643942683389,0.06684,37408.0,37406.0,0.5171372]
[1643942683585,0.06684,37408.0,37406.0,0.51325757]
[1643942683586,0.04077438,37407.0,37406.0,0.51325757]
[1643942683785,0.06684,37408.0,37406.0,0.51325757]
[1643942684033,0.06684,37408.0,37406.0,0.33930119]
[1643942684437,0.06684,37408.0,37406.0,0.41648942]
[1643942684637,0.04077438,37407.0,37406.0,0.07718823]
[1643942685337,0.14077438,37407.0,37405.0,0.00077586]
[1643942685936,0.14077438,37407.0,37401.0,0.133671]
[1643942686138,0.04077438,37402.0,37401.0,0.133671]
[1643942686337,0.04077438,37402.0,37401.0,0.21047073]
[1643942686737,0.05,37403.0,37401.0,0.50960412]
[1643942686937,0.03690632,37403.0,37402.0,0.64231387]
[1643942687138,0.193235,37415.0,37402.0,0.64231387]
[1643942687338,0.49236218,37415.0,37402.0,0.64231387]
[1643942687538,0.04077438,37406.0,37401.0,0.55054782]
[1643942687796,0.04077438,37406.0,37401.0,0.22047225]
[1643942687996,0.04077438,37403.0,37401.0,0.21124663]
[1643942688194,0.04077438,37403.0,37401.0,0.1344469]
[1643942688398,0.04077438,37403.0,37401.0,0.133671]
[1643942688995,0.45128762,37407.0,37402.0,0.00922562]
[1643942689196,0.04077438,37403.0,37401.0,0.14289662]
[1643942689596,0.04077438,37403.0,37401.0,0.133671]
[1643942689996,0.22253642,37402.0,37401.0,0.133671]
[1643942690196,0.22253642,37402.0,37401.0,0.14289662]
[1643942691638,0.2633108,37402.0,37401.0,0.14289662]
[1643942691836,0.2633108,37402.0,37401.0,0.133671]
[1643942696601,0.22253642,37402.0,37401.0,0.133671]
[1643942696799,0.2633108,37402.0,37401.0,0.133671]
[1643942697601,0.22253642,37402.0,37401.0,0.133671]
[1643942697801,0.2633108,37402.0,37401.0,0.133671]
[1643942698001,0.22253642,37402.0,37401.0,0.133671]
[1643942698404,0.2633108,37402.0,37401.0,0.133671]
[1643942699544,0.22253642,37402.0,37401.0,0.133671]
[1643942699744,0.2633108,37402.0,37401.0,0.133671]
[1643942700144,0.22253642,37402.0,37401.0,0.14289662]
[1643942700546,0.2633108,37402.0,37401.0,0.133671]
[1643942701145,0.22253642,37402.0,37401.0,0.133671]
[1643942701645,0.2633108,37402.0,37401.0,0.133671]
[1643942702047,0.3133108,37402.0,37400.0,0.13444691]
[1643942702251,0.05,37401.0,37400.0,0.13444691]
[1643942702693,0.05,37401.0,37400.0,0.14289662]
[1643942703585,0.09077438,37401.0,37400.0,0.14289662]
[1643942703785,0.09077438,37401.0,37400.0,0.133671]
[1643942703990,0.05,37401.0,37400.0,0.133671]
[1643942704186,0.09077438,37401.0,37400.0,0.133671]
[1643942704987,0.05,37401.0,37400.0,0.133671]
[1643942706188,0.09077438,37401.0,37400.0,0.133671]
[1643942708944,0.066839,37404.0,37400.0,0.43564742]
[1643942708945,0.10761338,37404.0,37400.0,0.43564742]
[1643942709149,0.066839,37404.0,37402.0,0.133674]
[1643942709345,0.04077438,37403.0,37402.0,0.133674]
[1643942709546,0.0782461,37403.0,37402.0,0.187474]
[1643942709745,0.03747172,37403.0,37402.0,0.187474]
[1643942710045,0.0782461,37403.0,37402.0,0.187474]
[1643942710289,0.08747172,37403.0,37402.0,0.187474]
[1643942710487,0.1282461,37403.0,37402.0,0.187474]
[1643942710691,0.08747172,37403.0,37402.0,0.187474]
[1643942711288,0.03747172,37403.0,37402.0,0.187474]
[1643942711693,0.0782461,37403.0,37402.0,0.187474]
[1643942711890,0.07815363,37403.0,37402.0,0.187474]
[1643942712791,0.12815363,37403.0,37402.0,0.187474]
[1643942712991,0.17815363,37403.0,37402.0,0.187474]
[1643942713396,0.12815363,37403.0,37402.0,0.187474]
[1643942713592,0.08737925,37403.0,37402.0,0.19669962]
[1643942713936,0.08737925,37403.0,37402.0,0.187474]
[1643942714536,0.06873586,37403.0,37402.0,0.187474]
[1643942714738,0.12815363,37403.0,37402.0,0.187474]
[1643942716439,0.17815363,37403.0,37402.0,0.0538]
[1643942716641,0.17815363,37403.0,37401.0,0.00072098]
[1643942716841,0.15941777,37403.0,37401.0,0.00072098]
[1643942717040,0.10941777,37403.0,37401.0,0.00072098]
[1643942717239,0.24506432,37402.0,37400.0,0.133671]
[1643942717442,0.24506432,37402.0,37400.0,0.13439198]
[1643942717691,0.04077438,37401.0,37400.0,0.13439198]
[1643942718489,0.04077438,37401.0,37400.0,0.133671]
[1643942719494,0.01873586,37402.0,37400.0,0.133671]
[1643942719790,0.01873586,37402.0,37400.0,0.14289662]
[1643942720193,0.05941777,37401.0,37400.0,0.14289662]
[1643942720390,0.01864339,37401.0,37400.0,0.14289662]
[1643942720591,0.01864339,37401.0,37400.0,0.187471]
[1643942720791,0.05941777,37401.0,37400.0,0.187471]
[1643942721439,0.01864339,37401.0,37400.0,0.187471]
[1643942722439,0.03737925,37401.0,37400.0,0.187471]
[1643942723040,0.07815363,37401.0,37400.0,0.187471]
[1643942723241,0.03737925,37401.0,37400.0,0.187471]
[1643942724042,0.03737925,37401.0,37400.0,0.19669662]
[1643942724442,0.03737925,37401.0,37400.0,0.187471]
[1643942724646,0.03737925,37401.0,37400.0,0.19669662]
[1643942724843,0.07441571,37401.0,37400.0,0.61251491]
[1643942725042,0.07441571,37401.0,37400.0,0.187471]
[1643942725287,0.05951024,37401.0,37400.0,0.187471]
[1643942725488,0.07441571,37401.0,37400.0,0.187471]
[1643942725691,0.03364133,37401.0,37400.0,0.187471]
[1643942725891,0.08364133,37401.0,37400.0,0.187471]
[1643942726088,0.07441571,37401.0,37400.0,0.187471]
[1643942726294,0.133686,37405.0,37401.0,1.15]
[1643942726492,0.28596812,37416.0,37401.0,1.15]
[1643942726493,0.04077438,37412.0,37404.0,1.07838325]
[1643942726692,0.133661,37417.0,37411.0,0.34967952]
[1643942726693,0.04077438,37417.0,37411.0,0.34967952]
[1643942726890,0.34418428,37428.0,37412.0,0.56355635]
[1643942726891,0.066817,37414.0,37412.0,0.56355635]
[1643942727090,0.066817,37414.0,37413.0,0.00922562]
[1643942727295,0.066817,37414.0,37413.0,0.06302562]
[1643942727489,0.066817,37414.0,37413.0,0.40326524]
[1643942727889,0.066817,37414.0,37413.0,0.16302562]
[1643942728940,0.066817,37414.0,37413.0,0.06302562]
[1643942729141,0.066817,37414.0,37413.0,0.34808126]
[1643942729343,0.066817,37414.0,37413.0,0.16302562]
[1643942729543,0.066817,37414.0,37413.0,0.16146762]
[1643942729945,0.066817,37414.0,37413.0,0.16139331]
[1643942730343,0.066817,37414.0,37413.0,0.34381696]
[1643942730542,0.066817,37414.0,37413.0,0.06139331]
[1643942730744,0.066817,37414.0,37413.0,0.4551453]
[1643942731445,0.066817,37414.0,37413.0,0.16139331]
[1643942731643,0.066817,37414.0,37413.0,0.06139331]
[1643942731843,0.066817,37414.0,37413.0,0.73329331]
[1643942732446,0.37393729,37414.0,37413.0,0.7257]
[1643942732700,0.47808221,37414.0,37413.0,0.7257]
[1643942732894,0.52808221,37414.0,37413.0,0.7257]
[1643942733696,0.57808221,37414.0,37413.0,0.0538]
[1643942739347,0.52808221,37414.0,37413.0,0.0538]
[1643942739549,0.42393729,37414.0,37413.0,0.0538]
[1643942739747,0.37393729,37414.0,37413.0,0.0538]
[1643942740990,0.42393729,37414.0,37413.0,0.0538]
[1643942744139,0.47393729,37414.0,37413.0,0.0538]
[1643942744339,0.42393729,37414.0,37413.0,0.0538]
[1643942745545,0.47393729,37414.0,37413.0,0.0538]
[1643942749401,0.25712029,37414.0,37413.0,0.12062429]
[1643942749994,0.25712029,37414.0,37413.0,0.0538]
[1643942750398,0.25712029,37414.0,37413.0,0.187444]
[1643942750997,0.25712029,37414.0,37412.0,0.172112]
[1643942751444,0.25712029,37414.0,37411.0,0.06682875]
[1643942751647,0.25712029,37414.0,37413.0,0.133644]
[1643942760741,0.04240669,37414.0,37413.0,0.133644]
[1643942765194,0.24878908,37419.0,37413.0,0.133644]
[1643942765394,0.24878908,37419.0,37413.0,0.20046803]
[1643942766442,0.24878908,37419.0,37415.0,0.066824]
[1643942766648,0.26727621,37418.0,37415.0,0.066824]
[1643942767045,0.26727621,37418.0,37415.0,0.061824]
[1643942769948,0.26727621,37418.0,37413.0,0.133644]
[1643942770190,0.26727621,37418.0,37411.0,0.066832]
[1643942770391,0.24713465,37413.0,37411.0,0.120632]
[1643942771790,0.26727621,37418.0,37412.0,0.09240669]
[1643942771990,0.26727621,37418.0,37413.0,0.066827]
[1643942772792,0.26727621,37418.0,37413.0,0.15923369]
[1643942772991,0.24147371,37416.0,37413.0,0.15923369]
[1643942773495,0.24147371,37416.0,37413.0,0.22605912]
[1643942773944,0.24147371,37416.0,37415.0,0.09240669]
[1643942775944,0.24147371,37416.0,37414.0,0.0538]
[1643942779089,0.24147371,37416.0,37414.0,0.14620669]
[1643942780089,0.24147371,37416.0,37414.0,0.09240669]
[1643942788496,0.53399475,37416.0,37411.0,0.47388762]
[1643942788699,0.53399475,37416.0,37407.0,0.84023962]
[1643942788700,0.37653388,37413.0,37407.0,0.84023962]
[1643942788940,2.07381176,37409.0,37407.0,0.5]
[1643942789141,2.42421876,37409.0,37407.0,0.5]
[1643942789340,2.42421876,37409.0,37403.0,0.02012135]
[1643942789542,0.23641275,37408.0,37406.0,0.00072567]
[1643942789747,0.350407,37407.0,37406.0,0.00072567]
[1643942789940,0.23641275,37408.0,37406.0,0.00072567]
[1643942790142,0.2295273,37414.0,37406.0,0.19313236]
[1643942790340,0.25008232,37415.0,37406.0,0.10072567]
[1643942790540,0.33522294,37415.0,37410.0,0.09240669]
[1643942790741,0.350407,37414.0,37410.0,0.09240669]
[1643942791143,1.34531247,37411.0,37409.0,0.09240669]
[1643942791339,1.34531247,37411.0,37406.0,0.06756569]
[1643942791640,1.34531247,37411.0,37406.0,0.15924669]
[1643942791840,1.34531247,37411.0,37406.0,0.15997236]
[1643942792041,1.34531247,37411.0,37406.0,0.00072567]
[1643942792042,0.28789391,37410.0,37406.0,0.00072567]
[1643942792443,0.09673785,37408.0,37406.0,0.00072567]
[1643942792894,0.28789391,37410.0,37403.0,0.43325059]
[1643942793090,0.24531247,37411.0,37405.0,0.00072568]
[1643942793293,0.24531247,37411.0,37407.0,0.09240669]
[1643942793894,0.24531247,37411.0,37408.0,0.09240669]
[1643942794094,0.24531247,37411.0,37406.0,0.1457358]
[1643942794293,0.24531247,37411.0,37406.0,0.06756668]
[1643942794899,0.31215247,37411.0,37406.0,0.13440323]
[1643942795099,0.31215247,37411.0,37406.0,0.06756668]
[1643942795296,0.07667648,37408.0,37406.0,0.066841]
[1643942795496,0.07667648,37408.0,37406.0,0.00072567]
[1643942795897,1.35,37407.0,37406.0,0.00072567]
[1643942796539,0.26688346,37404.0,37403.0,0.133677]
[1643942797938,0.14352148,37408.0,37403.0,0.133677]
[1643942797939,0.066845,37408.0,37403.0,0.133677]
[1643942798142,0.43102132,37419.0,37403.0,0.133677]
[1643942798143,0.22949773,37417.0,37409.0,0.15]
[1643942798350,0.22949773,37421.0,37416.0,0.19240669]
[1643942798543,0.22949773,37426.0,37420.0,0.09240669]
[1643942798746,0.23059773,37428.0,37421.0,0.0538]
[1643942798943,0.31348518,37425.0,37421.0,0.0538]
[1643942799244,0.07509669,37424.0,37422.0,0.1]
[1643942799443,0.67509669,37424.0,37423.0,0.187421]
[1643942799843,0.07509669,37424.0,37423.0,0.187421]
[1643942800049,0.07509669,37424.0,37423.0,0.27982769]
[1643942800292,0.07509669,37424.0,37423.0,0.34663651]
[1643942801092,0.31348518,37425.0,37423.0,0.34663651]
[1643942801293,0.31348518,37425.0,37424.0,0.1]
[1643942801492,0.31348518,37425.0,37424.0,0.1538]
[1643942801692,2.05,37424.0,37421.0,0.13362034]
[1643942801893,2.71082126,37423.0,37422.0,0.0538]
[1643942802092,2.400407,37423.0,37422.0,0.0538]
[1643942802697,0.62787403,37423.0,37422.0,0.0538]
[1643942803394,0.27746703,37423.0,37422.0,0.0538]
[1643942804443,0.0761161,37423.0,37422.0,0.0538]
[1643942805246,0.31348518,37425.0,37422.0,0.0538]
[1643942805443,0.31348518,37425.0,37423.0,0.06681]
[1643942805644,0.31348518,37425.0,37424.0,0.0538]
[1643942806344,0.81348518,37425.0,37424.0,0.0538]
[1643942806544,0.89140753,37425.0,37424.0,0.0538]
[1643942806745,1.24181453,37425.0,37424.0,0.0538]
[1643942807245,0.74181453,37425.0,37424.0,0.0538]
[1643942807445,0.39140753,37425.0,37424.0,0.0538]
[1643942807898,0.74181453,37425.0,37424.0,0.0538]
[1643942809797,0.74181453,37425.0,37424.0,0.0541]
[1643942810297,1.34181453,37425.0,37424.0,0.0541]
[1643942810898,0.067917,37428.0,37424.0,0.24650669]
[1643942811099,0.0011,37428.0,37427.0,0.09240669]
[1643942811444,0.0011,37428.0,37427.0,0.14620669]
[1643942812044,0.23049126,37428.0,37427.0,0.14620669]
[1643942812245,0.0011,37428.0,37427.0,0.24620669]
[1643942812445,0.0011,37428.0,37427.0,0.14620669]
[1643942812645,0.0011,37428.0,37427.0,0.0538]
[1643942814847,0.0011,37428.0,37427.0,0.0541]
[1643942815318,0.4011,37428.0,37427.0,0.0541]
[1643942815918,0.751507,37428.0,37427.0,0.0541]
[1643942816719,0.351507,37428.0,37427.0,0.0541]
[1643942816920,0.351507,37428.0,37427.0,0.14650669]
[1643942817121,0.5011,37428.0,37427.0,0.0541]
[1643942817720,0.0011,37428.0,37427.0,0.0541]
[1643942818522,0.0011,37428.0,37427.0,0.42873026]
[1643942818722,0.0011,37428.0,37427.0,0.14650669]
[1643942819345,0.7011,37428.0,37424.0,0.28682319]
[1643942819543,0.7011,37428.0,37425.0,0.0538]
[1643942819544,0.6011,37428.0,37425.0,0.0538]
[1643942819743,0.1,37426.0,37425.0,0.0538]
[1643942819944,0.1,37426.0,37425.0,0.187395]
[1643942820645,0.1,37427.0,37425.0,0.187395]
[1643942823793,0.1,37427.0,37425.0,0.0538]
[1643942824995,1.45,37426.0,37425.0,0.0538]
[1643942825193,0.1,37427.0,37425.0,0.0538]
[1643942825393,0.0011,37428.0,37425.0,0.0538]
[1643942825794,0.1,37426.0,37425.0,0.0538]
[1643942825997,0.0011,37428.0,37425.0,0.0538]
[1643942826194,0.1011,37428.0,37425.0,0.0538]
[1643942826446,0.1011,37428.0,37425.0,0.12059756]
[1643942827049,0.1011,37428.0,37425.0,0.0538]
[1643942827251,0.1011,37428.0,37425.0,0.15702992]
[1643942828151,2.05,37425.0,37419.0,1.00085329]
[1643942828352,0.9984407,37426.0,37420.0,0.0538]
[1643942828353,0.450407,37421.0,37420.0,0.0538]
[1643942828555,2.05,37424.0,37415.0,0.01918839]
[1643942828752,0.1,37416.0,37415.0,0.01918839]
[1643942828951,0.0048,37425.0,37415.0,0.01918839]
[1643942829148,0.0011,37428.0,37422.0,0.08924183]
[1643942829347,0.9,37423.0,37415.0,0.24573641]
[1643942829549,0.9,37423.0,37416.0,0.30803238]
[1643942829946,0.1011,37428.0,37416.0,0.30803238]
[1643942830199,0.1,37418.0,37416.0,0.42864938]
[1643942830394,0.1,37421.0,37416.0,0.120617]
[1643942830594,0.1,37421.0,37417.0,0.10215005]
[1643942830795,0.28586751,37423.0,37417.0,0.10215005]
[1643942830997,0.28586751,37423.0,37418.0,0.066815]
[1643942831201,0.1,37420.0,37418.0,0.066815]
[1643942831597,0.28586751,37423.0,37417.0,0.133623]
[1643942832198,0.1,37420.0,37417.0,0.133623]
[1643942832498,1.0,37418.0,37417.0,0.133623]
[1643942832699,0.1,37418.0,37417.0,0.133623]
[1643942833499,0.20235216,37418.0,37417.0,0.133623]
[1643942833943,0.99964712,37416.0,37413.0,0.36374802]
[1643942834144,0.1,37414.0,37412.0,0.13364]
[1643942834343,0.29964712,37416.0,37412.0,0.13364]
[1643942834545,0.20657396,37415.0,37412.0,0.13364]
[1643942834744,0.55,37413.0,37412.0,0.13364]
[1643942834945,0.10235216,37418.0,37412.0,0.13364]
[1643942834946,0.0011,37428.0,37412.0,2.09040981]
[1643942835146,0.101,37430.0,37425.0,0.6719]
[1643942835345,0.101,37430.0,37426.0,0.57235608]
[1643942835346,0.001,37430.0,37426.0,0.57235608]
[1643942835545,0.001,37430.0,37428.0,0.02027988]
[1643942835744,0.001,37430.0,37429.0,0.0538]
[1643942836744,0.101,37430.0,37429.0,0.0538]
[1643942836946,0.94524757,37430.0,37429.0,0.0538]
[1643942837248,0.34524757,37430.0,37429.0,0.0538]
[1643942837896,0.096,37430.0,37429.0,0.120599]
[1643942838095,0.26870402,37431.0,37429.0,0.120599]
[1643942838899,0.26870402,37431.0,37429.0,0.0538]
[1643942839897,0.76661259,37430.0,37429.0,0.0538]
[1643942841302,2.70024551,37430.0,37425.0,0.133592]
[1643942841557,2.70024551,37430.0,37423.0,0.0049]
[1643942841558,0.4594586,37426.0,37423.0,0.0049]
[1643942841750,0.096,37424.0,37419.0,0.133614]
[1643942842050,0.096,37421.0,37419.0,0.133614]
[1643942842650,0.096,37421.0,37420.0,0.22659941]
[1643942843248,0.746,37421.0,37420.0,0.22159941]
[1643942843549,0.096,37421.0,37419.0,0.133614]
[1643942846606,0.096,37421.0,37419.0,0.41686327]
[1643942847008,0.096,37421.0,37419.0,0.133614]
[1643942847306,0.096,37421.0,37417.0,0.28324927]
[1643942847307,0.37470027,37420.0,37417.0,0.28324927]
[1643942847508,0.096,37418.0,37415.0,0.28794927]
[1643942847707,1.446,37416.0,37414.0,0.28324927]
[1643942847907,0.24312164,37415.0,37413.0,0.47765009]
[1643942848106,0.096,37414.0,37413.0,0.47765009]
[1643942848306,0.24312164,37415.0,37413.0,0.47765009]
[1643942848508,0.096,37414.0,37413.0,0.47765009]
[1643942849351,0.23430265,37414.0,37413.0,0.47765009]
[1643942849549,0.30032232,37419.0,37413.0,0.47765009]
[1643942849748,0.27928341,37420.0,37414.0,0.28324927]
[1643942849947,0.22523378,37415.0,37414.0,0.28324927]
[1643942850147,0.3317372,37423.0,37414.0,0.28324927]
[1643942850349,0.22747722,37422.0,37414.0,0.33324927]
[1643942850548,0.28245891,37421.0,37414.0,0.40007027]